bitfinex-derivatives/quotes_ETHF0:USTF0_20250807
["timestamp","ask_amount","ask_price","bid_price","bid_amount"]
[1754549234834,40.8,3705.2,3704.4,2.77719583]
[1754549235123,0.4328,3704.9,3704.5,0.357896]
[1754549235325,0.5865,3704.8,3704.6,0.34449299]
[1754549235626,0.4328,3704.5,3704.3,0.53981]
[1754549235830,0.5865,3704.4,3704.3,0.53981]
[1754549236022,0.5865,3704.4,3704.3,1.17531026]
[1754549236223,0.4328,3704.8,3704.5,0.53977]
[1754549236428,0.4328,3704.7,3704.6,3.12169609]
[1754549236723,1.0193,3704.7,3704.6,3.12169609]
[1754549237222,1.0193,3704.7,3704.6,0.34450026]
[1754549237532,1.0193,3704.4,3703.6,3.11979583]
[1754549237831,0.4328,3704.1,3703.7,0.56459859]
[1754549238026,19.52475,3704.8,3703.9,0.53987]
[1754549238229,18.981,3704.8,3704.0,2.77719583]
[1754549238428,19.52075,3704.8,3704.0,2.77719583]
[1754549238631,0.53977,3704.6,3704.0,2.77719583]
[1754549239328,1.0193,3704.5,3704.0,2.77719583]
[1754549239828,1.12622,3705.0,3704.6,0.3426]
[1754549240027,0.5865,3704.8,3704.6,0.3426]
[1754549240230,41.5217,3704.7,3704.3,0.53982]
[1754549240533,1.0193,3704.5,3704.3,0.3426]
[1754549240725,40.8,3704.7,3704.3,0.3426]
[1754549240927,1.7228,3704.4,3704.3,0.5387]
[1754549241626,1.7228,3704.4,3704.3,0.8212]
[1754549241827,1.29,3704.6,3704.5,0.8212]
[1754549242033,0.2889,3704.9,3704.5,3.88939583]
[1754549242226,1.0,3706.0,3704.7,0.6336]
[1754549242426,1.0,3706.0,3705.9,3.41079583]
[1754549242824,1.0,3706.0,3705.9,9.41079583]
[1754549243030,0.5865,3707.1,3706.0,0.291]
[1754549243231,0.5865,3707.1,3705.2,18.974]
[1754549243232,0.5865,3707.1,3705.2,1.34922]
[1754549243436,0.5865,3706.7,3706.0,3.06819583]
[1754549243731,0.4328,3707.1,3706.6,0.53948]
[1754549243932,40.8,3707.3,3706.8,3.06819583]
[1754549244137,0.2,3707.9,3707.3,0.291]
[1754549244333,0.2,3707.9,3706.3,58.041]
[1754549244539,1.0193,3707.8,3707.1,2.77719583]
[1754549244749,0.5865,3707.6,3706.9,0.291]
[1754549244937,0.5865,3707.5,3706.9,0.83043]
[1754549245241,0.2,3707.9,3707.3,0.291]
[1754549245438,0.2,3707.9,3707.2,0.53938]
[1754549245439,0.83696,3707.5,3706.8,0.291]
[1754549245742,0.2,3707.9,3706.7,19.078]
[1754549246037,0.4328,3706.7,3706.3,38.876]
[1754549246242,0.53949,3706.6,3705.7,19.62061]
[1754549246431,3.42380085,3707.6,3706.0,0.53955]
[1754549246742,0.2976,3707.2,3706.5,0.5395]
[1754549246931,0.2976,3707.2,3706.8,0.53944]
[1754549247138,0.5865,3707.2,3706.8,0.53944]
[1754549247331,0.2976,3707.4,3707.0,0.83041]
[1754549247537,1.0193,3707.4,3707.1,0.291]
[1754549247944,0.5865,3707.2,3706.9,0.83043]
[1754549248241,0.5865,3707.2,3706.3,3.42380085]
[1754549248242,40.8,3707.5,3707.0,0.83042]
[1754549248431,1.0193,3707.4,3707.1,0.291]
[1754549248834,0.5865,3707.1,3706.5,0.291]
[1754549249035,1.0622,3706.9,3706.3,0.53952]
[1754549249234,0.7546,3706.7,3705.8,0.83189]
[1754549249435,44.22380085,3707.5,3705.9,0.33755072]
[1754549249635,3.42380085,3707.0,3706.0,0.33755072]
[1754549249834,3.42380085,3707.0,3706.1,0.33755072]
[1754549250036,3.42380085,3707.0,3705.4,0.53966]
[1754549250037,1.0622,3706.2,3705.4,0.53966]
[1754549250237,3.42380085,3707.0,3705.4,0.53966]
[1754549250238,1.0622,3706.1,3705.4,0.53966]
[1754549250436,0.53945,3706.8,3705.7,0.86771]
[1754549250632,0.3064,3706.5,3705.7,0.86771]
[1754549250846,0.3064,3706.5,3705.9,0.53958]
[1754549251338,0.53944,3706.9,3705.8,0.86769]
[1754549251541,0.4482,3706.5,3705.8,0.86769]
[1754549251738,0.7546,3707.1,3706.0,0.6204]
[1754549252036,1.0622,3707.1,3706.9,0.53944]
[1754549252241,1.0622,3707.1,3707.0,0.3281]
[1754549252446,0.3076,3707.1,3707.0,0.3281]
[1754549252639,0.7546,3707.3,3707.1,0.3281]
[1754549252834,0.3076,3707.2,3707.1,0.3281]
[1754549253036,1.0622,3707.1,3706.6,0.0275]
[1754549253244,40.8,3707.6,3706.7,0.53946]
[1754549253438,0.7558,3707.3,3707.2,0.53939]
[1754549253643,0.3076,3707.3,3707.2,0.86749]
[1754549254842,0.3076,3707.3,3707.2,0.3281]
[1754549255045,1.0622,3707.3,3707.0,0.53942]
[1754549255246,0.3076,3707.2,3707.1,0.3281]
[1754549255449,0.3076,3707.0,3705.9,0.3281]
[1754549255644,0.53945,3706.9,3705.9,0.3006]
[1754549255944,0.53941,3707.1,3705.9,0.3006]
[1754549256142,1.0622,3706.7,3706.1,0.53955]
[1754549256439,0.614,3707.0,3706.7,0.3006]
[1754549256645,0.3076,3706.9,3706.8,0.86755]
[1754549256842,0.4482,3707.1,3706.7,0.53946]
[1754549257049,0.3064,3706.6,3706.0,0.53957]
[1754549257242,0.7558,3706.3,3706.0,0.53957]
[1754549257548,0.614,3706.4,3705.7,0.53961]
[1754549257743,1.0622,3706.3,3705.6,39.39362]
[1754549257946,1.60178,3706.0,3705.1,0.53969]
[1754549258246,0.3076,3705.5,3705.4,0.56716]
[1754549258441,1.0622,3705.9,3705.7,0.86771]
[1754549258646,1.0622,3705.9,3705.4,0.20943418]
[1754549258647,40.8,3706.0,3705.9,0.86768]
[1754549258844,41.1076,3706.0,3705.9,0.86768]
[1754549259045,1.0622,3706.0,3705.9,0.53958]
[1754549259246,1.0622,3706.0,3705.9,0.74954857]
[1754549259641,1.0622,3706.0,3705.9,0.53958]
[1754549260346,1.0622,3706.0,3705.9,0.74958921]
[1754549260850,1.0622,3706.0,3705.9,0.53958]
[1754549261044,0.3064,3706.4,3706.1,0.53955]
[1754549261345,0.7558,3706.3,3706.0,0.53957]
[1754549261550,19.113,3706.6,3706.3,0.53952]
[1754549261849,19.112,3706.7,3706.1,0.53955]
[1754549262156,1.60176,3706.1,3704.7,0.7532]
[1754549262344,0.4482,3706.0,3704.8,0.2103005]
[1754549262646,0.614,3705.6,3704.9,0.2103005]
[1754549262842,19.121,3706.0,3704.1,0.2923]
[1754549262843,0.614,3705.2,3705.0,0.2103005]
[1754549263047,0.4482,3705.3,3703.8,0.7532]
[1754549263048,1.0622,3705.3,3703.8,0.7532]
[1754549263252,3.42380085,3705.5,3703.9,0.2103773]
[1754549263549,0.3064,3705.2,3704.3,0.53981]
[1754549263745,19.127,3705.2,3704.6,0.53977]
[1754549264049,0.53966,3705.4,3704.6,0.53977]
[1754549264050,1.0622,3704.8,3704.6,0.53977]
[1754549264243,0.7546,3704.7,3704.6,0.53977]
[1754549264444,1.0622,3704.7,3704.6,0.53977]
[1754549264848,41.8622,3704.7,3704.6,0.53977]
[1754549265551,40.8,3704.7,3704.6,1.58527]
[1754549266148,41.1076,3704.7,3704.6,1.29297]
[1754549266356,0.3076,3704.7,3704.6,1.29297]
[1754549266947,40.8,3705.0,3704.6,1.58527]
[1754549267152,0.3076,3704.9,3704.8,0.99234]
[1754549267452,0.614,3704.9,3704.8,0.99234]
[1754549267651,1.0622,3704.9,3704.8,0.53974]
[1754549268157,40.8,3705.0,3704.8,0.53974]
[1754549268158,0.614,3705.3,3705.2,0.53969]
[1754549268453,1.0622,3705.3,3705.2,0.53969]
[1754549268654,41.8622,3705.3,3705.2,0.53969]
[1754549270555,41.8622,3705.3,3705.1,0.53969]
[1754549270751,0.7558,3705.2,3705.1,0.53969]
[1754549270952,1.0622,3705.2,3705.1,1.29289]
[1754549271151,1.0622,3705.2,3705.1,0.53969]
[1754549274060,1.0622,3705.2,3705.1,0.87238221]
[1754549274557,1.0622,3706.1,3705.1,4.00815123]
[1754549274751,19.07,3706.0,3705.2,0.33269221]
[1754549274956,41.44778734,3705.9,3705.3,0.33269221]
[1754549275157,1.70998734,3705.8,3705.7,0.5396]
[1754549275361,1.0622,3705.8,3705.7,0.5396]
[1754549275654,26.1322,3705.8,3705.7,0.5396]
[1754549276460,26.1322,3705.8,3704.8,0.4526]
[1754549276461,25.07,3705.8,3704.8,0.4526]
[1754549276656,0.53957,3706.1,3704.8,0.4526]
[1754549276657,1.0622,3705.5,3704.8,0.4526]
[1754549276856,0.3076,3705.3,3704.8,0.4526]
[1754549277054,19.062,3705.6,3705.5,0.53964]
[1754549277761,20.1242,3705.6,3705.5,0.53964]
[1754549278154,19.669,3705.6,3705.5,1.29284]
[1754549278355,20.1172,3705.6,3705.5,0.53964]
[1754549279559,40.8,3705.7,3705.5,0.53964]
[1754549279560,0.95876297,3707.0,3706.6,0.53948]
[1754549279761,1.0189,3707.1,3706.2,0.2844]
[1754549280060,0.5697,3706.8,3706.7,0.53946]
[1754549280368,0.2863,3707.4,3707.2,0.53938]
[1754549280666,1.0189,3707.3,3707.2,0.53938]
[1754549280865,41.8189,3707.3,3707.2,0.53938]
[1754549281065,42.46650566,3707.3,3707.2,0.53938]
[1754549281370,41.44760566,3707.3,3707.2,1.28478]
[1754549281562,5.66e-06,3707.3,3707.2,1.57998]
[1754549281759,0.2,3707.9,3707.8,0.5393]
[1754549281960,1.24216297,3708.6,3707.9,0.5796]
[1754549282162,0.7326,3708.5,3708.3,0.53923]
[1754549282462,0.7326,3708.5,3708.4,1.0406]
[1754549282855,19.207,3708.7,3708.5,0.5392]
[1754549283066,0.2834,3708.7,3708.6,1.0406]
[1754549283264,0.4492,3708.9,3708.4,1.1188]
[1754549283464,1.0,3709.0,3708.5,1.0406]
[1754549283764,40.8,3708.9,3708.5,0.2844]
[1754549284064,1.7326,3709.0,3708.4,0.461]
[1754549284367,0.2834,3708.8,3708.5,0.5796]
[1754549284669,0.2863,3708.6,3708.2,0.2952]
[1754549284966,0.2834,3708.6,3708.3,0.53923]
[1754549285272,40.8,3708.9,3708.5,0.5392]
[1754549285455,1.0,3709.0,3708.4,1.0406]
[1754549285456,1.0,3709.0,3708.9,0.53914]
[1754549285660,1.0,3709.0,3708.9,1.57974]
[1754549285964,1.0,3709.0,3708.9,7.57974]
[1754549286261,1.0,3709.0,3708.9,1.0406]
[1754549286467,1.0189,3708.9,3708.6,0.7562]
[1754549286664,0.7355,3708.9,3708.6,0.7562]
[1754549286863,0.2834,3708.3,3707.8,0.7562]
[1754549287065,1.0189,3708.8,3707.8,0.7562]
[1754549287257,2.92225902,3708.9,3707.8,0.7562]
[1754549287466,3.92225902,3709.0,3707.8,0.7562]
[1754549287659,1.0,3709.0,3707.9,0.2952]
[1754549287860,0.2834,3708.9,3708.6,1.0406]
[1754549288061,0.2834,3708.9,3708.5,0.5392]
[1754549288062,1.0,3709.0,3708.5,0.5392]
[1754549288262,2.0189,3709.0,3708.8,1.0406]
[1754549288557,2.0189,3709.0,3708.9,1.0406]
[1754549288764,1.0,3709.0,3708.9,1.0406]
[1754549291065,1.0,3709.0,3708.9,7.0406]
[1754549292672,1.0,3709.0,3708.9,1.0406]
[1754549293876,1.0189,3708.9,3708.2,0.7562]
[1754549294071,1.0189,3708.9,3707.8,0.7562]
[1754549294368,0.2834,3708.9,3708.3,0.7562]
[1754549294570,0.7355,3708.8,3708.3,0.7562]
[1754549294769,0.7355,3708.6,3708.3,0.7562]
[1754549295078,0.7355,3708.6,3708.2,0.2844]
[1754549295079,1.2834,3709.0,3708.5,0.2844]
[1754549295377,0.2834,3708.8,3708.0,3.42094694]
[1754549295570,0.2834,3708.8,3708.7,1.0406]
[1754549295876,1.0,3709.0,3708.8,1.0406]
[1754549296074,1.0,3709.0,3708.9,1.0406]
[1754549296679,1.0,3709.0,3708.9,7.0406]
[1754549298276,0.7355,3708.9,3708.7,1.29537]
[1754549298475,0.2863,3708.9,3708.7,1.29537]
[1754549298667,1.0,3709.0,3708.8,0.2952]
[1754549298870,1.0,3709.0,3708.9,1.0406]
[1754549299680,1.0,3709.0,3708.9,7.0406]
[1754549300479,0.2265,3709.0,3708.9,7.0406]
[1754549300686,0.4492,3709.8,3709.6,0.53904]
[1754549300882,0.2863,3709.7,3709.6,0.85034]
[1754549302376,1.0189,3709.7,3709.6,0.3113]
[1754549302581,0.5697,3709.7,3709.6,0.3113]
[1754549302783,1.0189,3709.7,3709.6,0.3113]
[1754549303576,1.0189,3709.8,3709.2,0.2844]
[1754549303783,0.53903,3709.7,3708.8,0.53916]
[1754549303984,0.2834,3709.3,3708.8,0.53916]
[1754549304283,0.4492,3709.4,3708.7,0.3113]
[1754549304284,0.7355,3709.4,3708.7,0.85047]
[1754549304580,1.0189,3709.9,3708.7,0.53917]
[1754549304776,0.53906,3709.5,3708.6,0.3113]
[1754549304977,1.0189,3709.4,3708.7,0.53917]
[1754549305178,0.2863,3709.2,3708.7,0.53917]
[1754549305381,0.2863,3709.1,3709.0,0.3113]
[1754549306378,0.2863,3709.4,3709.3,0.85039]
[1754549307183,0.2863,3709.4,3709.3,0.3113]
[1754549307384,1.0189,3709.4,3709.3,0.3113]
[1754549307980,1.0189,3709.4,3709.1,0.5391]
[1754549307981,0.2834,3709.3,3708.7,0.3113]
[1754549308192,0.2863,3709.1,3708.8,0.0269]
[1754549308381,40.8,3710.0,3708.8,0.0269]
[1754549308578,1.5579,3709.9,3708.9,0.53914]
[1754549308874,0.4492,3709.6,3708.7,0.0275]
[1754549309083,0.4559,3709.4,3708.7,0.0275]
[1754549309278,1.0512,3709.7,3709.1,0.56662]
[1754549309486,0.3095,3709.6,3709.1,0.56662]
[1754549309688,0.3095,3709.4,3709.3,0.85019]
[1754549310182,0.7417,3709.3,3709.2,0.3112]
[1754549310387,0.7417,3709.6,3709.4,0.3112]
[1754549310683,40.8,3710.0,3709.8,0.53901]
[1754549310684,41.5417,3710.0,3709.8,0.53901]
[1754549310890,0.7417,3711.0,3710.4,0.53892]
[1754549311087,0.2858,3711.2,3710.5,0.3112]
[1754549311284,1.0512,3710.9,3710.5,0.3112]
[1754549311483,0.7654,3711.0,3710.5,0.0276]
[1754549311687,0.7654,3710.8,3710.3,0.53894]
[1754549311884,40.8,3711.1,3710.6,0.2836]
[1754549312188,0.2858,3710.8,3710.3,0.53894]
[1754549312490,1.0512,3710.9,3710.3,0.53894]
[1754549312685,41.33884,3711.1,3710.3,0.53894]
[1754549312686,1.0512,3711.0,3710.3,0.53894]
[1754549312984,40.8,3711.1,3710.3,0.53894]
[1754549313281,1.0512,3710.5,3710.4,0.85013]
[1754549313489,0.5953,3710.5,3710.4,0.85013]
[1754549313688,0.3095,3710.5,3710.4,0.85013]
[1754549314083,0.7654,3710.5,3709.6,0.074]
[1754549314286,0.53897,3710.1,3709.6,0.3112]
[1754549314490,0.4559,3710.2,3709.4,0.85027]
[1754549314681,1.0512,3710.1,3709.4,0.85027]
[1754549314881,0.3095,3710.0,3709.4,0.85027]
[1754549315486,0.7417,3709.9,3709.4,0.3112]
[1754549315785,0.65997655,3710.8,3709.4,0.56667]
[1754549315786,1.0512,3709.6,3709.4,0.56667]
[1754549316089,1.0512,3709.6,3709.4,0.85027]
[1754549316090,0.3095,3709.5,3709.4,0.85027]
[1754549316290,0.7417,3709.5,3709.3,0.53908]
[1754549316583,0.2858,3709.7,3708.9,0.2836]
[1754549316784,0.3095,3709.3,3708.7,0.0276]
[1754549316985,0.3095,3709.1,3708.7,0.0276]
[1754549317189,0.53906,3709.5,3708.7,0.0276]
[1754549317391,0.7417,3709.1,3708.8,0.53916]
[1754549317686,0.3095,3709.4,3708.7,0.53917]
[1754549317881,0.3095,3709.1,3708.4,2.91432337]
[1754549318087,0.3095,3708.9,3708.6,0.85039]
[1754549318283,1.0512,3708.7,3708.6,0.3112]
[1754549318489,0.4559,3708.5,3708.4,0.53921]
[1754549318686,1.0512,3708.4,3708.3,38.824]
[1754549318885,1.0512,3708.3,3708.1,0.0276]
[1754549319088,1.0512,3708.2,3708.0,0.53927]
[1754549319290,0.3095,3708.4,3707.6,0.85053]
[1754549319585,0.7654,3708.2,3707.4,1.91012966]
[1754549319787,0.53938,3707.4,3707.0,1.91012966]
[1754549319983,0.53938,3707.4,3707.0,1.44572966]
[1754549319984,0.7654,3707.1,3707.0,1.44572966]
[1754549320189,0.7654,3706.9,3706.1,0.2836]
[1754549320387,0.4559,3706.9,3706.1,0.2836]
[1754549320692,0.3095,3706.7,3706.6,3.36482337]
[1754549320878,0.3095,3706.7,3706.2,1.27363]
[1754549321082,0.7654,3706.7,3706.2,1.27363]
[1754549321284,0.3095,3706.6,3706.2,1.27363]
[1754549321487,0.3095,3706.4,3706.3,0.7341]
[1754549321689,0.05668732,3706.4,3706.3,0.7341]
[1754549321987,40.8,3706.8,3706.4,0.53951]
[1754549322185,40.8,3706.8,3706.3,0.53952]
[1754549322186,0.7417,3706.7,3706.3,0.53952]
[1754549322386,0.7417,3706.7,3705.9,1.27061084]
[1754549322387,40.8,3706.8,3706.0,0.53957]
[1754549322687,40.8,3706.8,3706.3,0.53951]
[1754549322889,0.7417,3706.7,3706.4,0.7341]
[1754549323196,40.8,3706.8,3706.7,0.7341]
[1754549323692,41.1095,3706.8,3706.7,0.7341]
[1754549323895,0.3095,3706.6,3706.2,0.53954]
[1754549324093,0.64911179,3706.6,3706.2,1.27364]
[1754549324289,0.4559,3706.5,3706.3,1.0392]
[1754549324592,41.2559,3706.8,3706.4,0.53951]
[1754549324790,40.8,3706.8,3706.7,1.0392]
[1754549324987,0.4559,3707.2,3706.8,0.53945]
[1754549325184,0.4559,3707.2,3707.0,0.53942]
[1754549325385,0.4559,3708.1,3707.3,0.53938]
[1754549325693,0.4559,3707.7,3707.4,1.0392]
[1754549325892,40.8,3707.8,3707.5,0.53935]
[1754549326093,1.0512,3707.6,3707.2,0.53939]
[1754549326290,1.0512,3707.7,3706.9,0.2836]
[1754549326492,1.0512,3707.7,3706.9,0.53943]
[1754549326690,1.0512,3707.7,3707.0,0.3051]
[1754549326887,40.8,3707.8,3707.2,0.53939]
[1754549327084,1.0512,3707.7,3707.6,0.53933]
[1754549327296,1.0512,3707.7,3707.6,1.0392]
[1754549327697,40.8,3707.8,3707.5,0.53935]
[1754549327996,1.0512,3707.6,3707.5,0.53935]
[1754549328791,1.0512,3707.6,3706.9,0.53943]
[1754549328792,6.0,3707.6,3706.9,0.53943]
[1754549328992,1.0512,3707.5,3707.2,0.53938]
[1754549329195,40.8,3707.8,3707.2,0.53938]
[1754549329394,1.0512,3707.5,3707.2,0.53938]
[1754549329688,40.8,3707.8,3706.6,3.4249374]
[1754549329689,0.7654,3707.2,3706.6,3.7085374]
[1754549329891,1.0512,3707.7,3707.2,0.53938]
[1754549330097,1.0512,3707.6,3707.2,0.53938]
[1754549330296,40.8,3707.8,3707.2,0.53938]
[1754549330496,1.0512,3707.5,3707.2,0.53938]
[1754549330793,1.0512,3707.7,3707.2,0.53938]
[1754549330992,0.2858,3707.5,3707.2,0.53938]
[1754549331297,40.8,3707.8,3707.2,0.53938]
[1754549331499,1.0512,3707.3,3707.2,0.53938]
[1754549331690,1.0512,3707.3,3707.1,0.53941]
[1754549331895,1.0512,3707.2,3707.1,0.53941]
[1754549332089,0.2858,3707.5,3707.0,0.53942]
[1754549332294,0.4559,3707.3,3707.0,0.53942]
[1754549332493,0.7417,3707.1,3707.0,0.53942]
[1754549332793,1.0512,3707.1,3706.8,0.53944]
[1754549332999,19.80835,3707.5,3706.8,0.53944]
[1754549333402,1.0512,3707.2,3706.8,0.53944]
[1754549334000,1.0512,3707.4,3706.8,0.53944]
[1754549334194,0.3095,3707.0,3706.8,0.53944]
[1754549334393,1.0512,3706.9,3706.8,0.53944]
[1754549334687,1.0512,3707.4,3706.7,0.53946]
[1754549334890,0.3095,3707.3,3706.7,0.53946]
[1754549335095,1.0512,3707.4,3706.7,0.53946]
[1754549335290,0.3095,3707.2,3706.6,0.53947]
[1754549335497,0.53938,3707.3,3706.6,0.53947]
[1754549335695,1.0512,3707.0,3706.6,0.53947]
[1754549335894,0.3095,3706.8,3706.4,0.2836]
[1754549336094,19.244,3707.0,3706.3,0.7556]
[1754549336300,19.244,3707.0,3706.4,0.53951]
[1754549336504,40.8,3706.9,3706.4,0.53951]
[1754549337093,1.0512,3706.8,3706.4,0.53951]
[1754549337393,0.7654,3706.5,3706.4,0.53951]
[1754549337600,41.2559,3706.9,3706.8,0.53945]
[1754549337789,41.8512,3706.9,3706.8,0.82305]
[1754549337989,41.8512,3706.9,3706.6,0.53947]
[1754549338207,0.7417,3706.7,3706.6,1.57867]
[1754549338393,1.0512,3706.7,3706.6,1.57867]
[1754549339797,1.0512,3706.7,3706.6,1.0392]
[1754549340094,1.0504,3706.7,3706.1,0.3067]
[1754549340296,1.0504,3706.5,3706.4,0.96341]
[1754549340505,1.0504,3706.5,3706.0,0.6165]
[1754549340700,0.2942,3706.4,3705.9,0.97141084]
[1754549340894,0.3041,3706.3,3706.2,1.0404]
[1754549341095,19.9742,3706.8,3706.6,0.53947]
[1754549341291,1.0504,3706.7,3706.6,1.57987]
[1754549341496,1.0504,3706.8,3706.5,0.3098]
[1754549341699,60.55245,3706.9,3706.3,0.53952]
[1754549342002,0.53945,3706.8,3706.0,0.53956]
[1754549342302,19.208,3706.7,3706.2,1.57993]
[1754549342505,1.0504,3706.6,3706.2,1.57993]
[1754549342693,0.7463,3706.5,3705.9,0.97141084]
[1754549342997,0.7562,3706.2,3706.0,1.0404]
[1754549343200,0.53954,3706.2,3705.9,0.97141084]
[1754549343506,1.58997,3706.0,3705.9,0.97141084]
[1754549343802,1.0504,3706.0,3705.9,0.97141084]
[1754549343994,41.8504,3706.0,3705.9,0.97141084]
[1754549344198,40.8,3706.0,3705.9,0.97141084]
[1754549344391,47.8504,3706.0,3705.9,0.97141084]
[1754549346295,0.53964,3705.6,3704.3,1.90327594]
[1754549346500,1.0359,3705.4,3704.9,0.53973]
[1754549346697,0.4376,3705.2,3704.5,0.7337]
[1754549346902,0.2942,3705.1,3704.9,0.53973]
[1754549347098,1.0359,3705.7,3705.1,0.5397]
[1754549347401,19.6336,3705.6,3705.5,1.0404]
[1754549347599,19.9278,3705.6,3705.5,1.0404]
[1754549347803,19.9288,3705.6,3705.5,1.0404]
[1754549348106,60.7268,3705.6,3705.5,1.0404]
[1754549348305,60.7248,3705.6,3705.5,1.0404]
[1754549348505,60.7238,3705.6,3705.5,1.0404]
[1754549349809,0.4376,3705.5,3705.2,0.3067]
[1754549350001,1.0359,3705.5,3704.3,1.0404]
[1754549350303,1.0359,3705.5,3704.9,1.0404]
[1754549350304,0.5983,3705.5,3704.9,1.0404]
[1754549350505,1.0359,3705.3,3705.0,1.0404]
[1754549350808,19.189,3705.3,3705.1,0.4239]
[1754549351004,19.4832,3705.3,3705.2,1.0404]
[1754549351309,40.8,3705.6,3705.3,1.0404]
[1754549351310,19.188,3705.4,3705.3,1.0404]
[1754549351809,41.0942,3705.6,3704.9,2.92215428]
[1754549351810,40.8,3705.6,3705.5,1.0404]
[1754549352102,59.982,3705.6,3705.5,1.0404]
[1754549352309,40.8,3705.6,3705.5,1.0404]
[1754549353407,41.5318,3705.6,3704.8,1.0404]
[1754549353707,40.8,3705.6,3705.0,0.4239]
[1754549353909,1.0359,3705.4,3705.0,0.3067]
[1754549354102,1.0359,3705.5,3704.9,0.6165]
[1754549354303,0.3041,3705.5,3704.9,0.6165]
[1754549354505,0.7318,3705.3,3704.4,2.92215428]
[1754549354805,0.7318,3705.3,3704.0,1.90327594]
[1754549354806,0.7318,3705.3,3704.6,0.84646]
[1754549355009,0.2942,3705.3,3704.7,2.92215428]
[1754549355202,40.8,3705.6,3705.0,0.53971]
[1754549355402,19.16,3705.5,3705.0,0.53971]
[1754549355603,19.16,3705.5,3705.3,0.7337]
[1754549355906,19.8918,3705.5,3705.4,1.0404]
[1754549358515,20.2913,3705.5,3705.4,1.71]
[1754549358718,1.1313,3705.5,3705.4,1.71]
[1754549359009,40.8,3705.6,3705.5,1.0404]
[1754549359207,19.15,3706.0,3705.9,0.383]
[1754549359408,19.15,3706.0,3705.9,1.71]
[1754549359799,59.95,3706.0,3705.9,1.71]
[1754549360910,40.8,3706.0,3705.9,1.71]
[1754549361110,59.937,3706.0,3705.9,1.71]
[1754549363012,60.6688,3706.0,3705.9,1.71]
[1754549363311,60.6688,3706.0,3705.1,2.92215428]
[1754549363312,41.5318,3706.0,3705.4,0.3067]
[1754549363609,41.5318,3706.0,3705.2,0.3098]
[1754549363610,0.9978,3705.6,3705.2,0.3098]
[1754549363807,0.6937,3705.3,3705.2,0.4984]
[1754549364113,1.4255,3705.3,3705.2,1.4033]
[1754549364408,0.84357,3706.7,3705.8,1.71]
[1754549364608,1.67081,3706.4,3706.3,0.4752]
[1754549364916,42.03321,3706.4,3705.9,0.4239]
[1754549365113,42.03321,3706.4,3705.9,0.6696]
[1754549365114,0.1977,3706.0,3705.9,0.6696]
[1754549365312,0.6353,3706.0,3705.9,0.6696]
[1754549365614,19.8457,3706.2,3706.1,1.71]
[1754549366306,19.8457,3706.2,3704.9,1.90327594]
[1754549366510,0.1977,3706.1,3706.0,2.24957]
[1754549366902,41.5318,3706.4,3706.3,0.6696]
[1754549367110,41.5318,3706.4,3706.3,1.71]
[1754549367315,60.6828,3706.4,3706.3,1.71]
[1754549367912,60.3886,3706.4,3706.3,1.71]
[1754549368214,60.3836,3706.4,3706.3,1.71]
[1754549368409,1.13775,3706.8,3706.3,1.71]
[1754549368410,0.4376,3706.7,3706.4,0.7306]
[1754549368711,1.4255,3706.7,3706.6,1.71]
[1754549368910,61.3655,3706.7,3706.6,1.71]
[1754549369112,62.03710905,3706.7,3706.6,1.71]
[1754549369313,42.89710905,3706.7,3706.6,1.2861]
[1754549369512,62.31790905,3706.7,3706.6,0.9763]
[1754549369715,43.18290905,3706.7,3706.6,0.9763]
[1754549370015,62.31590905,3706.7,3706.6,0.4953]
[1754549370211,0.7011,3706.5,3706.4,0.2974]
[1754549370412,0.7011,3706.0,3705.9,1.7129]
[1754549370724,1.4165,3706.0,3705.9,1.7129]
[1754549371607,0.6389,3706.3,3706.2,1.7129]
[1754549371813,19.124,3706.4,3706.3,1.7129]
[1754549372307,20.5405,3706.4,3705.9,0.53958]
[1754549372511,20.5405,3706.4,3706.3,1.287]
[1754549372710,20.5405,3706.4,3706.3,1.7129]
[1754549373118,60.6324,3706.7,3706.6,1.4105]
[1754549373318,60.6324,3706.7,3706.6,1.7129]
[1754549373819,59.914,3706.7,3706.6,1.7129]
[1754549374419,60.6294,3706.7,3706.6,1.7129]
[1754549374714,60.6294,3706.7,3705.8,4.82543022]
[1754549374715,1.1347,3706.4,3705.9,0.53958]
[1754549374916,0.1892,3706.0,3705.9,1.7129]
[1754549375211,40.8,3706.7,3706.3,0.83692]
[1754549375418,0.4336,3706.9,3706.7,1.7129]
[1754549375727,19.108,3706.8,3706.7,0.6872]
[1754549375913,59.908,3706.8,3706.7,0.6872]
[1754549376110,60.3416,3706.8,3706.7,1.7129]
[1754549376715,60.3426,3706.8,3706.7,1.7129]
[1754549376911,41.2336,3706.8,3706.7,1.7129]
[1754549377112,41.5154,3706.8,3706.7,1.7129]
[1754549377308,60.6174,3706.8,3706.7,1.7129]
[1754549378118,60.3356,3706.8,3706.7,1.7129]
[1754549378522,41.5154,3706.8,3706.7,1.7129]
[1754549378818,60.6154,3706.8,3706.7,1.7129]
[1754549379112,41.5154,3706.8,3706.7,1.7129]
[1754549379309,60.6044,3706.8,3706.7,1.7129]
[1754549379917,59.889,3706.8,3706.7,1.7129]
[1754549380118,59.887,3706.8,3706.7,1.7129]
[1754549380319,60.3206,3706.8,3706.7,1.7129]